fUST/lending_fUST_20260414
["ID","MTS","AMOUNT","RATE_DAILY","PERIOD"]
[420500349,1776173439780,-500.0,5e-05,2]
[420500350,1776173439791,-500.0,5e-05,2]
[420500351,1776173439801,-528.24303854,5e-05,2]
[420500352,1776173439817,-528.24303854,5e-05,2]
[420500353,1776173439828,-528.24303854,5e-05,2]
[420500354,1776173439839,-528.24303854,5e-05,2]
[420500355,1776173439852,-528.24303854,5e-05,2]
[420500356,1776173439874,-528.24303854,5e-05,2]
[420500357,1776173439885,-528.24303854,5e-05,2]
[420500358,1776173439898,-528.24303854,5e-05,2]
[420500359,1776173439910,-528.24303854,5e-05,2]
[420500360,1776173439932,-528.24303854,5e-05,2]
[420500361,1776173439941,-528.24303854,5e-05,2]
[420500362,1776173439954,-528.24303854,5e-05,2]
[420500363,1776173439967,-528.24303854,5e-05,2]
[420500364,1776173439980,-528.24303854,5e-05,2]
[420500365,1776173439990,-528.24303854,5e-05,2]
[420500366,1776173440005,-528.24303854,5e-05,2]
[420500367,1776173440018,-528.24303854,5e-05,2]
[420500368,1776173440032,-528.24303854,5e-05,2]
[420500369,1776173440048,-528.24303854,5e-05,2]
[420500370,1776173440068,-528.24303854,5e-05,2]
[420500371,1776173440078,-500.0,5e-05,2]
[420500372,1776173440106,-528.24303854,5e-05,2]
[420500373,1776173440117,-177.21595637,5e-05,2]
[420500374,1776173440146,-528.24303854,5e-05,2]
[420500376,1776173440157,-528.24303854,5e-05,2]
[420500377,1776173440198,-528.24303854,5e-05,2]
[420500378,1776173440215,-528.24303854,5e-05,2]
[420500379,1776173440243,-528.24303854,5e-05,2]
[420500380,1776173440285,-528.24303854,5e-05,2]
[420500381,1776173440303,-528.24303854,5e-05,2]
[420500382,1776173440318,-528.24303854,5e-05,2]
[420500383,1776173440343,-528.24303854,5e-05,2]
[420500384,1776173440390,-528.24303854,5e-05,2]
[420500385,1776173440424,-528.24303854,5e-05,2]
[420500386,1776173440435,-528.24303854,5e-05,2]
[420500387,1776173440455,-528.24303854,5e-05,2]
[420500388,1776173440465,-528.24303854,5e-05,2]
[420500389,1776173440476,-528.24303854,5e-05,2]
[420500390,1776173440486,-528.24303854,5e-05,2]
[420500391,1776173440506,-528.24303854,5e-05,2]
[420500392,1776173440518,-528.24303854,5e-05,2]
[420500393,1776173440530,-528.24303854,5e-05,2]
[420500394,1776173440547,-528.24303854,5e-05,2]
[420500395,1776173440558,-528.24303854,5e-05,2]
[420500396,1776173440582,-528.24303854,5e-05,2]
[420500397,1776173440592,-521.84009263,5e-05,2]
[420500398,1776173440603,-521.84009263,5e-05,2]
[420500399,1776173440624,-521.84009263,5e-05,2]
[420500400,1776173440634,-521.84009263,5e-05,2]
[420500401,1776173440653,-521.84009263,5e-05,2]
[420500402,1776173440667,-521.84009263,5e-05,2]
[420500403,1776173440677,-521.84009263,5e-05,2]
[420500404,1776173440698,-521.84009263,5e-05,2]
[420500405,1776173440712,-521.84009263,5e-05,2]
[420500406,1776173440722,-521.84009263,5e-05,2]
[420500407,1776173440747,-521.84009263,5e-05,2]
[420500408,1776173440762,-521.84009263,5e-05,2]
[420500409,1776173440784,-521.84009263,5e-05,2]
[420500410,1776173440799,-521.84009263,5e-05,2]
[420500411,1776173440829,-521.84009263,5e-05,2]
[420500412,1776173440839,-521.84009263,5e-05,2]
[420500413,1776173440860,-521.84009263,5e-05,2]
[420500414,1776173440872,-521.84009263,5e-05,2]
[420500415,1776173440884,-521.84009263,5e-05,2]
[420500416,1776173440902,-521.84009263,5e-05,2]
[420500417,1776173440913,-521.84009263,5e-05,2]
[420500418,1776173440928,-521.84009263,5e-05,2]
[420500419,1776173440938,-521.84009263,5e-05,2]
[420500420,1776173440949,-521.84009263,5e-05,2]
[420500422,1776173440963,-521.84009263,5e-05,2]
[420500424,1776173440973,-521.84009263,5e-05,2]
[420500425,1776173440983,-521.84009263,5e-05,2]
[420500426,1776173440995,-521.84009263,5e-05,2]
[420500427,1776173441008,-521.84009263,5e-05,2]
[420500428,1776173441018,-521.84009263,5e-05,2]
[420500429,1776173441028,-521.84009263,5e-05,2]
[420500430,1776173441045,-500.0,5e-05,2]
[420500431,1776173441059,-500.0,5e-05,2]
[420500432,1776173441075,-517.96883208,5e-05,2]
[420500433,1776173441093,-500.0,5e-05,2]
[420500434,1776173441103,-500.0,5e-05,2]
[420500435,1776173441114,-500.0,5e-05,2]
[420500436,1776173441129,-500.0,5e-05,2]
[420500437,1776173441140,-500.0,5e-05,2]
[420500438,1776173441154,-500.0,5e-05,2]
[420500439,1776173441169,-500.0,5e-05,2]
[420500440,1776173441181,-500.0,5e-05,2]
[420500441,1776173441194,-500.0,5e-05,2]
[420500442,1776173441209,-500.0,5e-05,2]
[420500443,1776173441219,-500.0,5e-05,2]
[420500444,1776173441238,-500.0,5e-05,2]
[420500445,1776173441252,-500.0,5e-05,2]
[420500446,1776173441266,-500.0,5e-05,2]
[420500447,1776173441293,-500.0,5e-05,2]
[420500448,1776173441304,-500.0,5e-05,2]
[420500449,1776173441314,-500.0,5e-05,2]
[420500450,1776173441331,-500.0,5e-05,2]
[420500451,1776173441363,-500.0,5e-05,2]
[420500452,1776173441394,-500.0,5e-05,2]
[420500453,1776173441409,-500.0,5e-05,2]
[420500454,1776173441419,-500.0,5e-05,2]
[420500455,1776173441462,-500.0,5e-05,2]
[420500456,1776173441472,-468.35014052,5e-05,2]
[420500457,1776173441514,-500.0,5e-05,2]
[420500458,1776173441528,-500.0,5e-05,2]
[420500459,1776173441539,-973.03972943,5e-05,2]
[420500460,1776173441566,-973.03972943,5e-05,2]
[420500461,1776173441576,-973.03972943,5e-05,2]
[420500462,1776173441602,-973.03972943,5e-05,2]
[420500463,1776173441632,-973.03972943,5e-05,2]
[420500464,1776173441644,-508.79409031,5e-05,2]
[420500465,1776173441654,-508.79409031,5e-05,2]
[420500466,1776173441684,-973.03972943,5e-05,2]
[420500467,1776173441694,-508.79409031,5e-05,2]
[420500468,1776173441721,-508.79409031,5e-05,2]
[420500469,1776173441731,-508.79409031,5e-05,2]
[420500470,1776173441741,-508.79409031,5e-05,2]
[420500471,1776173441774,-508.79409031,5e-05,2]
[420500472,1776173441784,-508.79409031,5e-05,2]
[420500473,1776173441797,-508.79409031,5e-05,2]
[420500474,1776173441817,-508.79409031,5e-05,2]
[420500475,1776173441828,-508.79409031,5e-05,2]
[420500476,1776173441842,-973.03972943,5e-05,2]
[420500477,1776173441872,-989.25705826,5e-05,2]
[420500478,1776173441882,-989.25705826,5e-05,2]
[420500479,1776173441893,-989.25705826,5e-05,2]
[420500480,1776173441915,-508.79409025,5e-05,2]
[420500481,1776173441940,-989.25705826,5e-05,2]
[420500482,1776173441950,-989.25705826,5e-05,2]
[420500483,1776173441971,-989.25705826,5e-05,2]
[420500484,1776173441997,-989.25705826,5e-05,2]
[420500485,1776173442007,-989.25705826,5e-05,2]
[420500486,1776173442040,-1006.12810886,5e-05,2]
[420500487,1776173442068,-1006.12810886,5e-05,2]
[420500488,1776173442079,-1006.12810886,5e-05,2]
[420500489,1776173442127,-1006.12810886,5e-05,2]
[420500490,1776173442137,-1006.12810886,5e-05,2]
[420500491,1776173442146,-1006.12810886,5e-05,2]
[420500492,1776173442178,-1006.12810886,5e-05,2]
[420500493,1776173442189,-1006.12810886,5e-05,2]
[420500494,1776173442216,-216.35174668,5e-05,2]
[420500495,1776173442226,-420.0,5.007e-05,2]
[420500496,1776173442236,-420.0,5.007e-05,2]
[420500497,1776173442264,-1000.0,5.101e-05,2]
[420500498,1776173442273,-720.0,5.134e-05,2]
[420500499,1776173442286,-249.76,5.181e-05,2]
[420500500,1776173442317,-382.33360244,5.201e-05,2]
[420500501,1776173442327,-208.573,5.277e-05,2]
[420500502,1776173442342,-162.81592015,5.294e-05,2]
[420500503,1776173442353,-537.6845,5.294e-05,2]
[420500504,1776173442365,-151.66255121,5.294e-05,2]
[420500505,1776173442376,-3000.0,5.294e-05,2]
[420500506,1776173442393,-162.380719,5.294e-05,2]
[420500507,1776173442405,-450.92376187,5.294e-05,2]
[420500508,1776173442417,-3000.0,5.294e-05,2]
[420500509,1776173442434,-583.76677755,5.294e-05,2]
[420500510,1776173442462,-537.6845,5.294e-05,2]
[420500511,1776173442473,-2150.738,5.294e-05,2]
[420500512,1776173442483,-156.587,5.294e-05,2]
[420500513,1776173442504,-557.5788265,5.349e-05,2]
[420500514,1776173442514,-800.0,5.357e-05,2]
[420500515,1776173442524,-800.0,5.372e-05,2]
[420500516,1776173442538,-324.8782612,5.388e-05,2]
[420500517,1776173442554,-256.46292141,5.396e-05,2]
[420500518,1776173442565,-578.20924308,5.404e-05,2]
[420500519,1776173442576,-800.0,5.432e-05,2]
[420500520,1776173442595,-800.0,5.447e-05,2]
[420500521,1776173442610,-599.60298507,5.459e-05,2]
[420500523,1776173442619,-485.51251019,5.478e-05,2]
[420500525,1776173442631,-151.0,5.478e-05,2]
[420500526,1776173442651,-151.0,5.478e-05,2]
[420500527,1776173442661,-151.0,5.478e-05,2]
[420500529,1776173442675,-151.0,5.478e-05,2]
[420500530,1776173442696,-151.0,5.478e-05,2]
[420500532,1776173442719,-151.0,5.478e-05,2]
[420500535,1776173442731,-151.0,5.478e-05,2]
[420500536,1776173442746,-151.0,5.478e-05,2]
[420500538,1776173442785,-151.0,5.478e-05,2]
[420500541,1776173442800,-151.0,5.478e-05,2]
[420500542,1776173442833,-572.52058489,5.479e-05,2]
[420500545,1776173442843,-300.0,5.479e-05,2]
[420500548,1776173442870,-656.8489482,5.479e-05,2]
[420500550,1776173442881,-6408.11936503,5.485e-05,2]
[420500552,1776173442899,-500.0,5.486e-05,2]
[420500553,1776173442909,-800.0,5.488e-05,2]
[420500554,1776173442921,-800.0,5.501e-05,2]
[420500555,1776173442939,-587.0,5.507e-05,2]
[420500556,1776173442949,-587.0,5.507e-05,2]
[420500557,1776173442958,-621.78829552,5.514e-05,2]
[420500558,1776173442971,-800.0,5.559e-05,2]
[420500559,1776173442983,-644.79446246,5.569e-05,2]
[420500560,1776173442993,-800.0,5.573e-05,2]
[420500561,1776173443004,-172.0,5.58e-05,2]
[420500562,1776173443025,-166.0,5.58e-05,2]
[420500563,1776173443035,-340.0,5.58e-05,2]
[420500564,1776173443046,-166.0,5.58e-05,2]
[420500565,1776173443059,-166.0,5.58e-05,2]
[420500566,1776173443070,-648.0,5.58e-05,2]
[420500567,1776173443079,-648.0,5.58e-05,2]
[420500568,1776173443103,-340.0,5.58e-05,2]
[420500569,1776173443112,-648.0,5.58e-05,2]
[420500570,1776173443123,-340.0,5.58e-05,2]
[420500571,1776173443147,-340.0,5.58e-05,2]
[420500572,1776173443159,-648.0,5.58e-05,2]
[420500573,1776173443177,-340.0,5.58e-05,2]
[420500574,1776173443191,-648.0,5.58e-05,2]
[420500575,1776173443203,-648.0,5.58e-05,2]
[420500576,1776173443219,-361.71427535,5.58e-05,2]
[420500577,1776173443249,-648.0,5.58e-05,2]
[420500578,1776173443259,-648.0,5.58e-05,2]
[420500579,1776173443275,-648.0,5.58e-05,2]
[420500580,1776173443288,-648.0,5.58e-05,2]
[420500581,1776173443297,-648.0,5.58e-05,2]
[420500582,1776173443307,-648.0,5.58e-05,2]
[420500583,1776173443320,-648.0,5.58e-05,2]
[420500584,1776173443332,-648.0,5.58e-05,2]
[420500585,1776173443342,-192.19530194,5.58e-05,2]
[420500586,1776173443354,-164.0,5.58e-05,2]
[420500587,1776173443365,-800.0,5.588e-05,2]
[420500588,1776173443378,-800.0,5.601e-05,2]
[420500589,1776173443392,-800.0,5.605e-05,2]
[420500590,1776173443402,-340.0,5.606e-05,2]
[420500591,1776173443411,-800.0,5.609e-05,2]
[420500592,1776173443427,-668.65185757,5.624e-05,2]
[420500593,1776173443437,-864.0,5.647e-05,2]
[420500594,1776173443448,-1500.0,5.648e-05,2]
[420500595,1776173443460,-693.3919763,5.679e-05,2]
[420500596,1776173443472,-791.0,5.7e-05,2]
[420500597,1776173443487,-719.04747942,5.734e-05,2]
[420500598,1776173443496,-745.65223616,5.789e-05,2]
[420500599,1776173443511,-155.0,5.805e-05,2]
[420500600,1776173443523,-557.5788265,5.842e-05,2]
[420500601,1776173443532,-2230.315306,5.842e-05,2]
[420500602,1776173443542,-773.2413689,5.844e-05,2]
[420500603,1776173443554,-801.85129955,5.899e-05,2]
[420500604,1776173443567,-831.51979763,5.954e-05,2]
[420500605,1776173443592,-302.36690842,6e-05,2]
[420500606,1776173443606,-862.28603014,6.009e-05,2]
[420500607,1776173443624,-823.0,6.058e-05,2]
[420500608,1776173443637,-894.19061326,6.064e-05,2]
[420500609,1776173443656,-699.152,6.107e-05,2]
[420500610,1776173443684,-1408.0,6.107e-05,2]
[420500611,1776173443694,-2208.0,6.107e-05,2]
[420500612,1776173443747,-738.0,6.107e-05,2]
[420500613,1776173443781,-184.0,6.107e-05,2]
[420500614,1776173443793,-441.0,6.107e-05,2]
[420500615,1776173443807,-532.424,6.107e-05,2]
[420500616,1776173443823,-927.27566595,6.119e-05,2]
[420500617,1776173443835,-479.11265635,6.144e-05,2]
[420500618,1776173443857,-961.58486559,6.174e-05,2]
[420500619,1776173443868,-514.74416288,6.196e-05,2]
[420500620,1776173443878,-1000.0,6.212e-05,2]
[420500621,1776173443893,-173.8711502,6.215e-05,2]
[420500622,1776173443905,-997.16350561,6.229e-05,2]
[420500623,1776173443915,-3023.04879011,6.272e-05,2]
[420500624,1776173444072,-578.20924308,6.39e-05,2]
[420500625,1776173444088,-2312.83697232,6.39e-05,2]
[420500626,1776173444099,-150.709,6.425e-05,2]
[420500627,1776173444111,-231.9513313,6.663e-05,2]
[420500628,1776173444132,-162.380719,6.663e-05,2]
[420500629,1776173444144,-1152.0,6.664e-05,2]
[420500630,1776173444167,-500.0,6.8e-05,2]
[420500631,1776173444185,-10494.861057,6.814e-05,2]
[420500632,1776173444197,-34119.685514,6.829e-05,2]
[420500633,1776173444206,-1000.0,6.833e-05,2]
[420500634,1776173444216,-244.0,6.833e-05,2]
[420500635,1776173444229,-1509.64318186,6.853e-05,2]
[420500636,1776173444243,-3508.66960818,6.853e-05,2]
[420500637,1776173444254,-804.72353269,6.855e-05,2]
[420500638,1776173444267,-627.97239066,6.873e-05,2]
[420500639,1776173444289,-5517.18156616,6.879e-05,2]
[420500640,1776173444299,-1646.46623792,6.879e-05,2]
[420500641,1776173444314,-300.64805468,6.913e-05,2]
[420500642,1776173444327,-3215.67523664,6.938e-05,2]
[420500643,1776173444337,-599.60298507,6.938e-05,2]
[420500644,1776173444350,-2398.4119403,6.938e-05,2]
[420500645,1776173444363,-683.72358168,6.953e-05,2]
[420500646,1776173444386,-2734.89432672,6.953e-05,2]
[420500647,1776173444396,-6153.51223512,6.953e-05,2]
[420500648,1776173444406,-823.70257794,6.953e-05,2]
[420500649,1776173444427,-167.75862274,6.953e-05,2]
[420500650,1776173444436,-3294.81031176,6.953e-05,2]
[420500651,1776173444446,-670.36345647,6.953e-05,2]
[420500652,1776173444480,-164.81087119,6.961e-05,2]
[420500653,1776173444495,-1201.38962651,6.963e-05,2]
[420500654,1776173444519,-1380.67606761,6.968e-05,2]
[420500655,1776173444529,-687.82438215,6.982e-05,2]
[420500656,1776173444566,-682.26026686,6.995e-05,2]
[420500657,1776173444606,-455.6259834,7.037e-05,2]
[420500658,1776173444616,-196.4268325,7.039e-05,2]
[420500659,1776173444641,-500.0,7.081e-05,2]
[420500660,1776173444658,-3106.52115212,7.105e-05,2]
[420500661,1776173444679,-474.34337501,7.146e-05,2]
[420500662,1776173444697,-2729.04106745,7.177e-05,2]
[420500663,1776173444714,-6134.20205936,7.177e-05,2]
[420500664,1776173444750,-345.1690169,7.191e-05,2]
[420500665,1776173444763,-412.02858807,7.191e-05,2]
[420500666,1776173444785,-157.15024791,7.201e-05,2]
[420500667,1776173444798,-151.0,7.323e-05,2]
[420500668,1776173444818,-621.78829552,7.486e-05,2]
[420500669,1776173444844,-2487.15318209,7.486e-05,2]
[420500670,1776173444878,-1000.0,7.516e-05,2]
[420500671,1776173444891,-492.0,7.516e-05,2]
[420500672,1776173444915,-19700.83188797,7.6e-05,2]
[420500673,1776173444926,-500.0,7.7e-05,2]
[420500674,1776173444942,-455.4188624,7.805e-05,2]
[420500675,1776173444959,-326.7422106,7.807e-05,2]
[420500676,1776173444986,-470.87192258,7.845e-05,2]
[420500677,1776173444997,-9865.04298085,8e-05,2]
[420500678,1776173445012,-200.0,8e-05,7]
[420500679,1776173445028,-168.3888056,8.032e-05,2]
[420500680,1776173445042,-354.3448174,8.034e-05,2]
[420500681,1776173445056,-2579.17784983,8.034e-05,2]
[420500682,1776173445081,-552.19763783,8.144e-05,2]
[420500683,1776173445091,-455.4115081,8.145e-05,2]
[420500684,1776173445111,-500.0,8.219e-05,2]
[420500685,1776173445120,-500.0,8.219e-05,2]
[420500686,1776173445130,-500.0,8.219e-05,2]
[420500687,1776173445142,-500.0,8.219e-05,2]
[420500688,1776173445161,-500.0,8.219e-05,2]
[420500689,1776173445171,-151.5,8.219e-05,2]
[420500690,1776173445180,-500.0,8.219e-05,2]
[420500691,1776173445199,-500.0,8.219e-05,2]
[420500692,1776173445208,-151.5,8.219e-05,2]
[420500693,1776173445217,-500.0,8.219e-05,2]
[420500694,1776173445227,-500.0,8.219e-05,2]
[420500695,1776173445247,-156.18086275,8.219e-05,2]
[420500696,1776173445256,-226.16371761,8.219e-05,2]
[420500697,1776173445265,-500.0,8.219e-05,2]
[420500698,1776173445275,-381.72935807,8.219e-05,2]
[420500699,1776173445290,-500.0,8.219e-05,2]
[420500700,1776173445300,-151.5,8.219e-05,2]
[420500701,1776173445311,-500.0,8.219e-05,2]
[420500702,1776173445321,-151.5,8.219e-05,2]
[420500703,1776173445342,-197.5175198,8.219e-05,2]
[420500704,1776173445352,-576.85623907,8.219e-05,2]
[420500705,1776173445361,-500.0,8.219e-05,2]
[420500706,1776173445377,-500.0,8.219e-05,2]
[420500707,1776173445388,-500.0,8.219e-05,2]
[420500708,1776173445397,-500.0,8.219e-05,2]
[420500709,1776173445408,-500.0,8.219e-05,2]
[420500710,1776173445431,-500.0,8.219e-05,2]
[420500711,1776173445440,-496.65346595,8.219e-05,2]
[420500712,1776173445462,-500.0,8.219e-05,2]
[420500713,1776173445477,-290.35492798,8.219e-05,2]
[420500714,1776173445511,-500.0,8.219e-05,2]
[420500715,1776173445537,-500.0,8.219e-05,2]
[420500716,1776173445549,-500.0,8.219e-05,2]
[420500717,1776173445574,-517.54740292,8.219e-05,2]
[420500719,1776173445604,-500.0,8.219e-05,2]
[420500720,1776173445614,-500.0,8.219e-05,2]
[420500721,1776173445645,-500.0,8.219e-05,2]
[420500722,1776173445654,-500.0,8.219e-05,2]
[420500723,1776173445674,-500.0,8.219e-05,2]
[420500724,1776173445689,-500.0,8.219e-05,2]
[420500725,1776173445716,-500.0,8.219e-05,2]
[420500726,1776173445727,-500.0,8.219e-05,2]
[420500727,1776173445749,-500.0,8.219e-05,2]
[420500728,1776173445761,-500.0,8.219e-05,2]
[420500729,1776173445774,-366.89060835,8.219e-05,2]
[420500730,1776173445797,-500.0,8.219e-05,2]
[420500731,1776173445808,-151.0,8.219e-05,2]
[420500732,1776173445838,-151.0,8.219e-05,2]
[420500733,1776173445849,-151.0,8.219e-05,2]
[420500734,1776173445868,-151.0,8.219e-05,2]
[420500735,1776173445880,-151.0,8.219e-05,2]
[420500736,1776173445892,-184.694969,8.219e-05,2]
[420500737,1776173445919,-1000.0,8.268e-05,2]
[420500738,1776173445929,-791.0,8.268e-05,2]
[420500739,1776173445939,-6237.91693052,8.317e-05,2]
[420500740,1776173445959,-500.0,8.493e-05,2]
[420500741,1776173445968,-1226.65988088,8.562e-05,2]
[420500742,1776173445978,-2674.60743027,8.582e-05,2]
[420500743,1776173445992,-500.0,8.767e-05,2]
[420500744,1776173446008,-506.53456384,9.041e-05,2]
[420500745,1776173446018,-1000.0,9.095e-05,2]
[420500746,1776173446032,-1000.0,9.095e-05,2]
[420500747,1776173446049,-645.0,9.107e-05,2]
[420500748,1776173446072,-1408.0,9.107e-05,2]
[420500749,1776173446085,-2208.0,9.107e-05,2]
[420500750,1776173446095,-738.0,9.107e-05,2]
[420500751,1776173446112,-184.0,9.107e-05,2]
[420500752,1776173446121,-349.576,9.107e-05,2]
[420500753,1776173446132,-441.0,9.107e-05,2]
[420500754,1776173446145,-10000.0,9.123e-05,2]
[420500755,1776173446161,-2773.56790519,9.13e-05,2]
[420500756,1776173446174,-173.8711502,9.187e-05,2]
[420500757,1776173446195,-151.0,9.211e-05,2]
[420500758,1776173446210,-174.61919141,9.401e-05,2]
[420500759,1776173446238,-252.687921,9.429e-05,2]
[420500760,1776173446263,-2876.18991768,9.678e-05,2]
[420500761,1776173446277,-202.5387284,9.923e-05,5]
[420500762,1776173446293,-20948.15543932,9.932e-05,2]
[420500763,1776173446518,-151.68053369,5.478e-05,2]
[420500764,1776173446546,-18909.9622042,9.932e-05,2]
[420500765,1776173446557,-10323.92405006,0.0001,2]
[420500766,1776173446591,-185.68443591,0.0001,2]
[420500767,1776173446601,-212.63310163,0.0001,2]
[420500768,1776173446624,-218.66524445,0.0001,2]
[420500769,1776173446634,-422.73368856,0.0001,2]
[420500770,1776173446643,-222588.29862129,0.0001,2]
[420500771,1776173446673,-999.64040625,0.0001,2]
[420500772,1776173446683,-548.77227298,0.0001,2]
[420500774,1776173446693,-246.85645306,0.0001,2]
[420500776,1776173446730,-202.07162382,0.0001,2]
[420500777,1776173446743,-540.53916667,0.0001,2]
[420500779,1776173446774,-224.85413023,0.0001,2]
[420500781,1776173446800,-305.89362706,0.0001,2]
[420500783,1776173446811,-392.05582151,0.0001,2]
[420500785,1776173446821,-196.02791072,0.0001,2]
[420500787,1776173446861,-211.91613363,0.0001,2]
[420500789,1776173446871,-212.00484037,0.0001,2]
[420500791,1776173446881,-181.21044585,0.0001,2]
[420500792,1776173446903,-159.47482622,0.0001,2]
[420500793,1776173446914,-249.85072128,0.0001,2]
[420500794,1776173446923,-2293.42521171,0.0001,10]
[420500796,1776173446945,-48014.50109649,0.0001,2]
[420500798,1776173446955,-1315.45575227,0.0001,2]
[420500800,1776173446974,-22666.35,0.0001,2]
[420500801,1776173446985,-308.11,0.0001,2]
[420500802,1776173446994,-3411.70137871,0.0001,2]
[420500803,1776173447012,-340.91343187,0.0001,2]
[420500804,1776173447022,-154.06,0.0001,2]
[420500805,1776173447031,-999.0,0.0001,2]
[420500806,1776173447043,-1000.0,0.00010004,2]
[420500807,1776173447064,-1000.0,0.00010004,2]
[420500808,1776173447073,-579.0,0.00010004,2]
[420500809,1776173447083,-455.6259834,0.00010009,2]
[420500810,1776173447097,-324.3251138,0.00010033,2]
[420500811,1776173447123,-173.8711502,0.00010033,2]
[420500812,1776173447134,-151.0,0.0001008,2]
[420500813,1776173447143,-151.0,0.00010081,2]
[420500814,1776173447160,-625.28261931,0.00010144,2]
[420500815,1776173447173,-399.999999,0.000102,2]
[420500816,1776173447182,-2982.60894464,0.00010226,2]
[420500817,1776173447200,-233.0,0.00010267,2]
[420500818,1776173447222,-566.0,0.00010267,2]
[420500819,1776173447253,-1089.0,0.00010267,2]
[420500820,1776173447286,-715.0,0.00010267,2]
[420500821,1776173447310,-237.0,0.00010267,2]
[420500822,1776173447338,-300.0,0.000103,2]
[420500823,1776173447347,-632.45,0.000103,2]
[420500824,1776173447391,-316.23,0.000103,2]
[420500825,1776173447403,-392.05582151,0.00010346,2]
[420500826,1776173447431,-964.91,0.000106,2]
[420500827,1776173447450,-428.31862536,0.00010618,2]
[420500828,1776173447473,-9359.54626913,0.0001067,2]
[420500829,1776173447497,-5000.0,0.0001067,2]
[420500830,1776173447513,-5000.0,0.0001067,2]
[420500831,1776173447532,-5000.0,0.0001067,2]
[420500832,1776173447542,-165.09,0.00010685,2]
[420500833,1776173447565,-500.0,0.00010685,2]
[420500834,1776173447576,-392.05582151,0.00010692,2]
[420500835,1776173447586,-548.77227298,0.00010703,2]
[420500836,1776173447620,-224.85413023,0.00010717,2]
[420500837,1776173447630,-540.53916667,0.00010717,2]
[420500838,1776173447644,-258.28269584,0.0001077,2]
[420500839,1776173447655,-3092.96547559,0.00010774,2]
[420500840,1776173447665,-325.255386,0.00010875,2]
[420500841,1776173447674,-156.702356,0.00010875,2]
[420500842,1776173447687,-160.0,0.00010891,3]
[420500843,1776173447698,-164.46841824,0.00010891,5]
[420500844,1776173447713,-2877.598,0.00010958,2]
[420500845,1776173447724,-1822.4652,0.00010958,2]
[420500846,1776173447737,-7722.158193,0.00010958,2]
[420500847,1776173447749,-325.726202,0.00010958,2]
[420500848,1776173447763,-500.0,0.00010958,2]
[420500849,1776173447772,-509.87319928,0.00010958,2]
[420500850,1776173447787,-500.0,0.00010958,2]
[420500851,1776173447801,-509.94184347,0.00010958,2]
[420500852,1776173447811,-511.03255818,0.00010958,2]
[420500853,1776173447824,-505.46617431,0.00010958,2]
[420500854,1776173447834,-513.63823939,0.00010958,2]
[420500855,1776173447854,-500.0,0.00010958,2]
[420500856,1776173447867,-510.08984355,0.00010958,2]
[420500857,1776173447881,-500.0,0.00010958,2]
[420500858,1776173447908,-331.46296427,0.00010958,2]
[420500859,1776173447918,-391.92149734,0.00010958,2]
[420500860,1776173447931,-500.0,0.00010958,2]
[420500861,1776173447952,-500.0,0.00010958,2]
[420500862,1776173447962,-500.0,0.00010958,2]
[420500863,1776173447973,-536.15807121,0.00010958,2]
[420500864,1776173447998,-500.0,0.00010958,2]
[420500865,1776173448008,-500.0,0.00010958,2]
[420500866,1776173448018,-516.05122725,0.00010958,2]
[420500867,1776173448041,-510.02515683,0.00010958,2]
[420500868,1776173448050,-508.18434528,0.00010958,2]
[420500869,1776173448073,-500.0,0.00010958,2]
[420500870,1776173448084,-517.39586631,0.00010958,2]
[420500871,1776173448093,-438.90173403,0.00010958,2]
[420500872,1776173448113,-500.0,0.00010958,2]
[420500873,1776173448123,-510.41764111,0.00010958,2]
[420500874,1776173448136,-500.0,0.00010958,2]
[420500875,1776173448149,-500.0,0.00010958,2]
[420500876,1776173448163,-509.01354719,0.00010958,2]
[420500877,1776173448173,-500.0,0.00010958,2]
[420500878,1776173448186,-511.50180125,0.00010958,2]
[420500879,1776173448203,-510.64721741,0.00010958,2]